bitfinex/quotes_SOLUSD_20241008
["timestamp","ask_amount","ask_price","bid_price","bid_amount"]
[1728347127278,0.8119741,144.49,144.48,131.1330439]
[1728347127879,0.8119741,144.49,144.48,151.1330439]
[1728347132191,0.14031616,144.49,144.48,151.1330439]
[1728347134104,6.917,144.57,144.55,50.0]
[1728347134288,6.1156,144.62,144.57,50.0]
[1728347134489,6.1156,144.62,144.59,50.0]
[1728347134689,6.9142,144.63,144.59,56.9159]
[1728347134886,7.7256741,144.64,144.61,50.0]
[1728347137709,7.7256741,144.64,144.62,1.37750973]
[1728347137906,7.7256741,144.64,144.61,50.0]
[1728347138106,0.8119741,144.64,144.62,1.37750961]
[1728347138415,0.8119741,144.64,144.62,1.37750113]
[1728347138711,0.8119741,144.64,144.61,56.9149]
[1728347138888,7.7256741,144.64,144.61,50.0]
[1728347139088,0.8119741,144.64,144.61,56.915]
[1728347139294,0.8119741,144.64,144.63,50.0]
[1728347140285,0.8119741,144.64,144.63,51.37705174]
[1728347140686,0.8119741,144.64,144.63,78.41664174]
[1728347141103,0.8119741,144.64,144.63,132.31901574]
[1728347141514,0.8119741,144.64,144.63,130.941964]
[1728347141905,0.8119741,144.64,144.63,107.03959]
[1728347143407,0.8119741,144.64,144.63,152.50206348]
[1728347143590,0.8119741,144.64,144.63,130.941964]
[1728347143911,0.8119741,144.64,144.63,100.12549]
[1728347144301,0.8119741,144.64,144.63,80.0]
[1728347145303,7.7256741,144.64,144.63,80.0]
[1728347145796,0.8119741,144.64,144.63,57.03959]
[1728347146592,0.8119741,144.64,144.63,110.816474]
[1728347146792,0.8119741,144.64,144.63,132.31798811]
[1728347146995,0.8119741,144.64,144.63,130.941964]
[1728347148213,7.41e-05,144.64,144.63,130.941964]
[1728347148405,16.5696,144.76,144.74,50.0]
[1728347149714,6.9088,144.75,144.72,50.0]
[1728347150410,16.5696,144.76,144.75,50.0]
[1728347150593,23.4776,144.76,144.75,50.0]
[1728347150908,23.4776,144.76,144.73,50.0]
[1728347150909,16.5696,144.76,144.73,50.0]
[1728347151100,16.5696,144.76,144.74,50.0]
[1728347151513,6.9088,144.75,144.72,50.0]
[1728347152213,16.5696,144.76,144.74,50.0]
[1728347152395,23.4777,144.76,144.74,50.0]
[1728347153597,6.9094,144.73,144.72,50.0]
[1728347153904,16.5696,144.76,144.67,17.2798]
[1728347153905,6.9101,144.72,144.7,50.0]
[1728347155359,6.9103,144.71,144.7,50.0]
[1728347156195,6.9103,144.71,144.68,50.0]
[1728347156532,6.9113,144.69,144.68,50.0]
[1728347156898,6.9123,144.67,144.65,50.0]
[1728347157102,6.9126,144.67,144.65,50.0]
[1728347159020,6.9127,144.66,144.63,80.0]
[1728347159230,6.9134,144.65,144.63,50.0]
[1728347159613,6.9133,144.65,144.63,50.0]
[1728347160221,6.9131,144.66,144.63,50.0]
[1728347161236,6.9132,144.65,144.63,50.0]
[1728347161436,32.5843,144.68,144.61,50.0]
[1728347161627,6.9148,144.62,144.59,50.0]
[1728347161808,0.12549,144.65,144.57,50.0]
[1728347162137,6.9165,144.58,144.55,50.0]
[1728347163217,15.289,144.61,144.52,24.2171]
[1728347163218,6.9184,144.55,144.52,50.0]
[1728347163511,6.9184,144.55,144.49,24.2227]
[1728347163512,6.9179,144.56,144.5,56.9202]
[1728347163719,1.72957725,144.58,144.54,50.0]
[1728347163926,8.64647725,144.58,144.54,50.0]
[1728347164237,6.4307,144.59,144.56,50.0]
[1728347165410,6.9176,144.56,144.54,50.0]
[1728347165616,1.72906227,144.58,144.52,50.0]
[1728347165617,6.918,144.55,144.52,50.0]
[1728347166529,6.9189,144.53,144.5,50.0]
[1728347166738,6.9186,144.54,144.52,50.0]
[1728347167727,6.9186,144.54,144.5,50.0]
[1728347167933,6.919,144.53,144.5,50.0]
[1728347169217,6.9185,144.54,144.5,50.0]
[1728347169725,6.9189,144.53,144.5,50.0]
[1728347170326,1.72974877,144.52,144.48,50.0]
[1728347170540,6.9208,144.5,144.46,50.0]
[1728347171239,6.9208,144.49,144.46,50.0]
[1728347172321,6.4998,144.51,144.48,50.0]
[1728347172722,13.4199,144.51,144.48,50.0]
[1728347172923,13.4199,144.51,144.46,50.0]
[1728347173545,13.4199,144.51,144.48,50.0]
[1728347174943,6.9205,144.5,144.46,50.0]
[1728347175332,1.7301589,144.54,144.49,50.0]
[1728347175532,23.32,144.55,144.52,50.0]
[1728347175736,6.9188,144.54,144.5,50.0]
[1728347176522,6.9188,144.54,144.46,20.1838799]
[1728347176523,6.9204,144.5,144.46,50.0]
[1728347176729,1.72977663,144.54,144.48,50.0]
[1728347176730,19.02657663,144.54,144.48,50.0]
[1728347176925,6.9195,144.52,144.48,50.0]
[1728347177137,6.9195,144.52,144.49,1.38101616]
[1728347177338,6.9195,144.52,144.48,50.0]
[1728347178725,1.72993542,144.51,144.48,50.0]
[1728347178931,6.9215,144.48,144.44,50.0]
[1728347179440,1.73036956,144.52,144.46,50.0]
[1728347179645,6.921,144.49,144.46,50.0]
[1728347181229,6.9204,144.5,144.46,50.0]
[1728347181443,6.9204,144.5,144.48,50.0]
[1728347181831,6.92,144.51,144.48,50.0]
[1728347182454,6.9207,144.5,144.48,50.0]
[1728347182832,6.9209,144.49,144.46,50.0]
[1728347183045,6.9213,144.48,144.46,50.0]
[1728347183262,6.9223,144.46,144.44,50.0]
[1728347184053,6.9228,144.45,144.42,50.0]
[1728347184250,17.3025,144.49,144.44,50.0]
[1728347184458,6.922,144.47,144.44,50.0]
[1728347185387,6.9223,144.46,144.42,50.0]
[1728347186846,6.9223,144.46,144.44,50.0]
[1728347190159,6.9223,144.46,144.41,24.2353]
[1728347190160,6.9237,144.43,144.42,50.0]
[1728347190372,6.9233,144.44,144.42,50.0]
[1728347190538,6.9224,144.46,144.44,50.0]
[1728347194660,15.4859,144.48,144.44,50.0]
[1728347194965,6.9214,144.48,144.44,56.9231]
[1728347195166,6.9214,144.48,144.44,50.0]
[1728347195466,1.73057824,144.49,144.44,50.0]
[1728347195467,6.9221,144.47,144.44,50.0]
[1728347196663,6.9221,144.47,144.4,20.1838799]
[1728347196664,6.9209,144.49,144.46,50.0]
[1728347204570,6.9206,144.5,144.46,50.0]
[1728347205356,6.9209,144.49,144.46,50.0]
[1728347206471,6.9213,144.48,144.46,50.0]
[1728347209061,1.73030873,144.51,144.46,50.0]
[1728347209369,6.9205,144.5,144.46,74.2278]
[1728347210167,6.9205,144.5,144.46,67.3057]
[1728347211178,1.73030873,144.51,144.47,6.9213]
[1728347211342,6.9196,144.52,144.48,50.0]
[1728347211540,6.9196,144.52,144.49,1.3813699]
[1728347211745,6.9199,144.51,144.49,1.3813699]
[1728347211963,6.9199,144.51,144.48,50.0]
[1728347212161,6.9206,144.5,144.48,50.0]
[1728347212555,19.02770251,144.53,144.46,50.0]
[1728347212747,6.9209,144.49,144.46,50.0]
[1728347213243,6.9203,144.51,144.48,50.0]
[1728347216166,6.9203,144.51,144.48,51.38129925]
[1728347218676,6.9203,144.51,144.48,50.0]
[1728347219176,6.9196,144.52,144.49,1.38122992]
[1728347220573,6.9212,144.49,144.46,50.0]
[1728347220956,1.72993935,144.51,144.48,50.0]
[1728347221155,6.9203,144.51,144.48,50.0]
[1728347222155,1.73014911,144.53,144.48,50.0]
[1728347222376,6.9187,144.54,144.51,50.0]
[1728347222560,1.73010353,144.55,144.51,50.0]
[1728347222896,6.919,144.53,144.49,67.3018]
[1728347224881,1.72986663,144.52,144.47,50.0]
[1728347225180,1.73019389,144.51,144.44,50.0]
[1728347225406,6.9221,144.47,144.45,30.0]
[1728347226059,6.9221,144.47,144.44,50.0]
[1728347227064,6.9217,144.48,144.45,1.38237692]
[1728347227274,6.921,144.49,144.46,50.0]
[1728347227783,8.65181441,144.48,144.44,56.9231]
[1728347227986,8.65181441,144.48,144.44,50.0]
[1728347227987,6.9214,144.48,144.44,50.0]
[1728347228391,6.9223,144.46,144.44,50.0]
[1728347228685,6.9223,144.46,144.42,56.924]
[1728347228882,6.9223,144.46,144.43,30.0]
[1728347229383,6.9223,144.46,144.42,56.924]
[1728347229594,1.73065657,144.49,144.44,50.0]
[1728347229895,1.73065657,144.49,144.44,67.3079]
[1728347229896,6.9214,144.48,144.44,67.3079]
[1728347230078,1.73065657,144.49,144.44,67.3079]
[1728347230268,6.9218,144.47,144.44,50.0]
[1728347235280,6.9228,144.45,144.42,50.0]
[1728347235684,6.9233,144.44,144.42,50.0]
[1728347235890,6.923,144.45,144.42,50.0]
[1728347238073,1.7308393,144.44,144.4,50.0]
[1728347238275,1.73098351,144.43,144.37,50.0]
[1728347238580,1.73098351,144.43,144.32,51.00923606]
[1728347238581,6.9256,144.39,144.35,74.2456]
[1728347238798,6.9256,144.39,144.35,67.3182]
[1728347239094,6.9256,144.39,144.35,74.2456]
[1728347239473,6.9256,144.39,144.36,30.0]
[1728347239676,6.9252,144.4,144.37,50.0]
[1728347240177,17.3097,144.43,144.37,50.0]
[1728347240403,6.9248,144.41,144.37,50.0]
[1728347240993,1.73143678,144.43,144.39,50.0]
[1728347241195,15.5628,144.44,144.4,8.3088344]
[1728347241399,0.12549,144.47,144.41,50.0]
[1728347241400,15.2852,144.47,144.41,50.0]
[1728347241584,6.9229,144.45,144.41,56.9243]
[1728347242185,22.2074,144.47,144.43,50.0]
[1728347242385,6.9223,144.46,144.43,50.0]
[1728347244513,17.01594081,144.47,144.41,74.2357]
[1728347244721,6.9229,144.45,144.41,74.2357]
[1728347245005,6.9229,144.45,144.43,50.0]
[1728347246207,6.9229,144.45,144.41,74.2357]
[1728347246884,6.9229,144.45,144.43,50.0]
[1728347247082,1.73072382,144.48,144.43,50.0]
[1728347247288,1.73072382,144.48,144.44,1.38291553]
[1728347247289,6.9219,144.47,144.44,1.38291553]
[1728347247500,6.9223,144.46,144.43,50.0]
[1728347247708,6.9223,144.46,144.44,1.38263801]
[1728347249704,6.9223,144.46,144.43,50.0]
[1728347250502,1.73067435,144.53,144.48,50.0]
[1728347250711,8.64997435,144.53,144.48,56.9209]
[1728347250884,8.64845453,144.54,144.5,50.0]
[1728347251587,8.64845453,144.54,144.5,56.9202]
[1728347252200,16.4319,144.55,144.51,1.38080344]
[1728347252201,8.64784378,144.55,144.51,1.38080344]
[1728347252415,8.64784378,144.55,144.51,8.30060344]
[1728347252585,33.8257,144.58,144.49,17.3014]
[1728347252586,8.648675,144.54,144.49,17.3014]
[1728347252783,6.9192,144.53,144.49,17.3014]
[1728347253190,1.72986891,144.57,144.49,17.3014]
[1728347253397,6.9194,144.52,144.49,17.3014]
[1728347253584,6.9194,144.52,144.48,56.9209]
[1728347253785,6.9201,144.51,144.47,6.9217]
[1728347253990,6.9201,144.51,144.46,67.3052]
[1728347254302,6.9201,144.51,144.46,74.227]
[1728347254694,17.2944,144.56,144.46,50.0]
[1728347254695,8.65068691,144.5,144.46,50.0]
[1728347254907,6.92,144.51,144.47,1.38174463]
[1728347255417,6.9195,144.52,144.47,8.30344463]
[1728347255606,1.73019444,144.51,144.47,8.30344463]
[1728347255804,1.7301986,144.52,144.48,56.9212]
[1728347256717,0.12549,144.56,144.51,56.9199]
[1728347256718,6.9184,144.55,144.51,56.9199]
[1728347257027,8.64826676,144.54,144.49,75.60301858]
[1728347257215,8.64909128,144.53,144.49,67.3017]
[1728347257398,6.9192,144.53,144.49,67.3017]
[1728347258224,6.9192,144.53,144.49,74.2225]
[1728347258630,6.9192,144.53,144.5,1.38102914]
[1728347258921,6.9192,144.53,144.49,74.2225]
[1728347259539,1.72992976,144.61,144.56,56.2548]
[1728347259730,7.2295202,144.62,144.61,80.817474]
[1728347259911,1.72844402,144.68,144.66,6.9127]
[1728347260115,1.72808269,144.7,144.63,6.9141]
[1728347260446,1.72808269,144.7,144.62,67.2865]
[1728347260625,1.72808269,144.7,144.63,6.9137]
[1728347260922,1.72808269,144.7,144.62,50.0]
[1728347260923,21.72808269,144.7,144.62,50.0]
[1728347261142,21.72808269,144.7,144.65,17.2823]
[1728347261312,20.0,144.7,144.65,17.2823]
[1728347262011,20.0,144.7,144.66,50.0]
[1728347262316,6.3748,144.75,144.69,6.9112]
[1728347262519,8.63655596,144.74,144.68,56.9117]
[1728347262821,8.63655596,144.74,144.68,6.9117]
[1728347263022,1.72765596,144.74,144.67,17.2798]
[1728347263229,6.9099,144.72,144.67,24.192]
[1728347263419,1.72796,144.71,144.64,74.1974]
[1728347263829,6.912,144.68,144.62,56.9146]
[1728347264032,6.9128,144.66,144.62,50.0]
[1728347264209,24.027864,144.71,144.62,50.0]
[1728347264527,6.9109,144.7,144.64,56.9136]
[1728347265230,6.9109,144.7,144.65,6.9132]
[1728347265827,6.9113,144.69,144.64,56.9137]
[1728347266529,1.72811904,144.68,144.64,56.9137]
[1728347266832,1.72812349,144.68,144.64,56.9137]
[1728347267432,8.64032349,144.68,144.63,24.1984]
[1728347267808,8.64032349,144.68,144.64,50.0]
[1728347269312,1.72812349,144.68,144.62,56.9146]
[1728347269529,6.9133,144.65,144.62,50.0]
[1728347269733,8.64213209,144.64,144.6,67.2885]
[1728347269939,6.9132,144.65,144.61,30.0]
[1728347270112,6.9132,144.65,144.61,36.915]
[1728347270508,6.9132,144.65,144.6,74.204]
[1728347271642,1.72857354,144.64,144.6,74.204]
[1728347271845,6.9147,144.62,144.58,50.0]
[1728347272139,6.9156,144.61,144.57,46.65057967]
[1728347272743,6.9165,144.59,144.55,50.0]
[1728347273140,6.9165,144.59,144.55,56.9179]
[1728347273531,1.7291665,144.62,144.57,50.0]
[1728347273730,20.0,144.65,144.57,50.0]
[1728347273930,6.9146,144.62,144.58,24.2073]
[1728347274132,6.9146,144.62,144.58,17.2908]
[1728347274346,6.9152,144.61,144.57,56.9169]
[1728347275254,6.9147,144.62,144.57,56.9169]
[1728347276049,6.9147,144.62,144.57,50.0]
[1728347276345,6.9147,144.62,144.58,6.9165]
[1728347276961,6.9147,144.62,144.57,56.9169]
[1728347278850,1.72895285,144.64,144.57,56.9169]
[1728347278851,6.9151,144.61,144.57,56.9169]
[1728347280047,6.9151,144.61,144.57,50.0]
[1728347280344,23.776884,144.63,144.57,50.0]
[1728347280544,23.776884,144.63,144.55,17.2942]
[1728347280545,6.9162,144.59,144.55,74.212]
[1728347280754,1.72911095,144.62,144.55,74.212]
[1728347280755,6.9157,144.6,144.55,74.212]
[1728347281246,6.9157,144.6,144.55,67.2942]
[1728347281451,6.9157,144.6,144.56,6.9174]
[1728347283227,6.9155,144.61,144.56,1.37899413]
[1728347283553,8.64468876,144.6,144.56,8.29609413]
[1728347283854,8.64468876,144.6,144.55,74.2121]
[1728347283855,6.9162,144.59,144.55,74.2121]
[1728347285754,6.9162,144.59,144.56,1.37906253]
[1728347285933,6.9162,144.59,144.55,74.2121]
[1728347287152,6.9171,144.57,144.53,56.9188]
[1728347287339,6.9171,144.57,144.52,46.66663687]
[1728347287340,6.9167,144.58,144.55,50.0]
[1728347287928,6.9155,144.61,144.57,6.9168]
[1728347288135,6.9155,144.61,144.57,8.29583368]
[1728347289754,6.9153,144.61,144.57,58.29583368]
[1728347294138,8.64393145,144.62,144.58,6.9164]
[1728347294343,8.64393145,144.62,144.59,1.37842068]
[1728347294756,8.64275382,144.64,144.6,6.9156]
[1728347294947,1.72885382,144.64,144.59,51.37842068]
[1728347295267,8.64192326,144.65,144.61,6.9149]
[1728347297158,13.0249,144.66,144.62,8.2921132]
[1728347297456,23.2209,144.67,144.63,56.9138]
[1728347297751,6.9133,144.65,144.62,17.2863]
[1728347297960,6.9133,144.65,144.61,56.915]
[1728347298342,1.72827683,144.66,144.61,56.915]
[1728347298536,6.9137,144.64,144.61,50.0]
[1728347298739,6.9142,144.63,144.61,50.0]
[1728347299342,6.9142,144.63,144.59,24.2052]
[1728347299555,21.72827683,144.66,144.59,17.2892]
[1728347299744,6.9144,144.63,144.59,24.2052]
[1728347300632,20.0,144.66,144.6,50.0]
[1728347300832,6.9139,144.64,144.61,17.2867]
[1728347302068,6.9139,144.64,144.61,24.2018]
[1728347302546,6.913,144.66,144.62,51.37766855]
[1728347302867,16.3086,144.67,144.64,50.0]
[1728347303069,8.18289475,144.69,144.65,1.37660577]
[1728347303242,6.9118,144.68,144.65,1.37660577]
[1728347305168,13.3663,144.69,144.65,8.28970577]
[1728347305371,6.9108,144.7,144.67,6.9122]
[1728347306950,6.9109,144.7,144.66,56.9125]
[1728347307368,6.9109,144.7,144.66,58.28868732]
[1728347307975,6.9113,144.69,144.66,58.28868732]
[1728347308267,6.9113,144.69,144.65,24.196]
[1728347308459,6.9113,144.69,144.66,1.37620887]
[1728347308665,6.9113,144.69,144.66,51.37620887]
[1728347309163,6.9113,144.69,144.66,51.37618872]
[1728347309366,6.9113,144.69,144.66,50.0]
[1728347309569,1.72792326,144.69,144.65,17.283]
[1728347309767,6.9118,144.68,144.65,17.283]
[1728347311059,6.9118,144.68,144.65,18.65947777]
[1728347311563,6.9118,144.68,144.65,17.283]
[1728347312276,6.9118,144.68,144.65,18.65947073]
[1728347313566,6.9118,144.68,144.65,17.283]
[1728347313768,1.72803915,144.67,144.64,50.0]
[1728347313956,6.9127,144.66,144.64,50.0]
[1728347314772,6.9132,144.65,144.64,50.0]
[1728347314978,6.9143,144.63,144.61,50.0]
[1728347315751,6.9138,144.64,144.61,50.0]
[1728347316280,6.9138,144.64,144.61,56.9151]
[1728347318878,6.9138,144.64,144.61,50.0]
[1728347319261,6.9142,144.63,144.61,50.0]
[1728347319463,6.9147,144.62,144.58,50.0]
[1728347319780,6.9154,144.61,144.59,30.0]
[1728347320500,6.9154,144.61,144.58,50.0]
[1728347321072,6.9156,144.6,144.58,50.0]
[1728347321586,6.9162,144.59,144.56,67.2927]
[1728347321883,6.9162,144.59,144.55,6.9176]
[1728347322180,6.9162,144.59,144.56,30.0]
[1728347322680,6.9162,144.59,144.55,6.9176]
[1728347322861,8.64576106,144.58,144.54,56.9183]
[1728347323186,6.9162,144.59,144.55,6.9179]
[1728347323482,6.9162,144.59,144.55,8.29723642]
[1728347327860,6.9157,144.6,144.56,6.9174]
[1728347328272,8.64524001,144.59,144.55,24.2126]
[1728347328579,6.917,144.57,144.53,6.9186]
[1728347328780,6.917,144.57,144.54,30.0]
[1728347329577,6.917,144.57,144.53,6.9186]
[1728347333079,8.64589287,144.58,144.54,8.29810819]
[1728347334060,1.72939738,144.61,144.55,1.37973207]
[1728347334374,6.9159,144.6,144.56,24.2109]
[1728347334690,6.9159,144.6,144.57,6.917]
[1728347335383,8.64376234,144.62,144.58,6.9165]
[1728347335768,15.25528056,144.63,144.59,6.916]
[1728347337682,8.34098056,144.63,144.58,17.2911]
[1728347337997,6.9162,144.59,144.55,74.2119]
[1728347338282,6.9162,144.59,144.56,30.0]
[1728347339386,6.9162,144.59,144.55,74.2119]
[1728347339984,6.9166,144.58,144.55,67.2942]
[1728347340196,6.9166,144.58,144.55,17.2942]
[1728347340500,6.9166,144.58,144.53,50.0]
[1728347340501,1.72940124,144.57,144.53,50.0]
[1728347340699,6.918,144.55,144.53,50.0]
[1728347341569,6.9176,144.56,144.53,50.0]
[1728347342371,6.918,144.55,144.51,74.2194]
[1728347343477,8.64809648,144.54,144.51,17.2996]
[1728347343684,6.9185,144.54,144.51,17.2996]
[1728347344579,6.9181,144.55,144.51,25.59991967]
[1728347345689,8.64735074,144.56,144.52,56.9194]
[1728347345878,1.72975074,144.56,144.53,8.29904079]
[1728347346493,1.72975074,144.56,144.53,1.38014079]
[1728347346675,8.64735074,144.56,144.53,1.38014079]
[1728347346881,8.64735074,144.56,144.52,50.0]
[1728347346882,6.918,144.55,144.52,50.0]
[1728347347073,1.72966031,144.54,144.5,56.9202]
[1728347347275,6.0227,144.57,144.51,1.38065678]
[1728347347276,1.72978267,144.56,144.51,1.38065678]
[1728347347473,6.918,144.55,144.51,8.30055678]
[1728347348096,6.9186,144.54,144.51,1.38065678]
[1728347348475,6.9186,144.54,144.5,67.3008]
[1728347349190,6.9186,144.54,144.51,6.9199]
[1728347350290,6.9186,144.54,144.5,74.2209]
[1728347350475,1.72978504,144.53,144.5,67.3008]
[1728347350684,6.9195,144.52,144.48,79.48429378]
[1728347350987,6.9195,144.52,144.49,30.0]
[1728347351374,1.72990045,144.54,144.49,30.0]
[1728347351574,6.9211,144.49,144.45,6.9226]
[1728347351787,16.3466,144.52,144.46,30.0]
[1728347351788,6.9214,144.48,144.46,30.0]
[1728347352101,8.652278,144.47,144.44,17.3077]
[1728347352392,6.9218,144.47,144.44,17.3077]
[1728347353091,6.9218,144.47,144.43,6.9237]
[1728347353300,6.9239,144.43,144.39,79.50275769]
[1728347353596,6.9245,144.42,144.4,30.0]
[1728347354091,6.9241,144.43,144.4,30.0]
[1728347354294,1.73104797,144.44,144.4,31.38376277]
[1728347354596,1.73104797,144.44,144.39,56.9255]
[1728347354597,6.9234,144.44,144.39,56.9255]
[1728347354786,6.9234,144.44,144.4,8.30877559]
[1728347356078,1.73103989,144.43,144.38,17.3149]
[1728347356281,6.9238,144.43,144.38,17.3149]
[1728347356497,1.73116363,144.42,144.38,17.3149]
[1728347357015,1.73116363,144.42,144.38,24.2407]
[1728347357680,8.65556363,144.42,144.38,24.2407]
[1728347357881,6.9244,144.42,144.38,24.2407]
[1728347358880,6.9237,144.43,144.39,6.9256]
[1728347359089,1.7311786,144.42,144.38,24.2409]
[1728347359284,8.6554786,144.42,144.38,24.2409]
[1728347359488,6.5459,144.45,144.36,22.58194955]
[1728347359489,1.73117618,144.41,144.36,22.58194955]
[1728347359684,6.9257,144.39,144.35,17.3181]
[1728347359902,6.9257,144.39,144.36,30.0]
[1728347360404,8.65780174,144.38,144.36,30.0]
[1728347360581,6.9262,144.38,144.33,6.9281]
[1728347360782,6.9262,144.38,144.34,30.0]
[1728347361095,6.9262,144.38,144.34,80.0]
[1728347361301,6.9262,144.38,144.34,86.928]
[1728347361613,6.9262,144.38,144.34,56.928]
[1728347364410,6.9262,144.38,144.34,6.928]
[1728347365006,6.9275,144.36,144.32,67.3218]
[1728347365299,6.9267,144.37,144.33,8.31356733]
[1728347365608,6.9262,144.38,144.33,8.31356733]
[1728347366403,6.9262,144.38,144.34,6.9279]
[1728347366617,8.65737203,144.39,144.35,1.38531454]
[1728347368710,16.273,144.4,144.36,56.927]
[1728347368885,18.00450432,144.4,144.36,56.927]
[1728347369504,24.93000432,144.4,144.36,56.927]
[1728347369704,24.93000432,144.4,144.36,6.927]
[1728347370013,24.93000432,144.4,144.35,6.9274]
[1728347371303,6.9257,144.39,144.35,6.9274]
[1728347374113,6.9257,144.39,144.35,8.31244848]
[1728347374290,16.273,144.4,144.35,1.38504848]
[1728347374495,23.1982,144.4,144.36,56.9268]
[1728347376312,16.273,144.4,144.34,17.3196]
[1728347376499,6.927,144.37,144.33,6.9285]
[1728347378210,6.927,144.37,144.33,8.31398979]
[1728347378420,6.928,144.34,144.32,50.0]
[1728347378600,6.9285,144.33,144.3,89.91593913]
[1728347379103,6.9285,144.33,144.3,67.3246]
[1728347379301,1.73181152,144.36,144.28,57.7428741]
[1728347379302,6.9292,144.32,144.28,57.7428741]
[1728347379705,6.9287,144.33,144.29,6.9304]
[1728347379906,1.73233641,144.33,144.28,68.1391741]
[1728347380105,8.66083641,144.33,144.29,6.9303]
[1728347382511,6.929,144.32,144.28,75.0699741]
[1728347383615,1.73233641,144.33,144.28,68.1391741]
[1728347383921,1.73233641,144.33,144.29,6.9304]
[1728347383922,8.66103641,144.33,144.29,6.9304]
[1728347385394,15.1668,144.34,144.31,6.9295]
[1728347385616,15.1668,144.34,144.32,6.9287]
[1728347387005,15.1668,144.34,144.31,1.38567957]
[1728347387205,1.73210866,144.36,144.33,6.9285]
[1728347387412,1.73210866,144.36,144.33,8.31407025]
[1728347388126,8.65920866,144.36,144.33,8.31407025]
[1728347388621,1.73210866,144.36,144.33,8.31407025]
[1728347388806,8.65876377,144.37,144.33,8.31407025]
[1728347389207,17.64336333,144.38,144.34,67.32]
[1728347389518,15.9114,144.38,144.34,50.0]
[1728347389726,15.9114,144.38,144.35,6.9274]
[1728347390520,6.926,144.39,144.35,6.9274]
[1728347390917,20.0,144.4,144.36,1.38488423]
[1728347391122,26.9252,144.4,144.36,8.31188423]
[1728347391328,26.9252,144.4,144.36,6.927]
[1728347391528,6.9256,144.39,144.35,24.2458]
[1728347392426,6.9256,144.39,144.36,1.3848852]
[1728347393007,20.0,144.42,144.36,51.3848852]
[1728347393336,8.65639717,144.41,144.37,6.9265]
[1728347394806,28.65579818,144.42,144.38,8.31053399]
[1728347395430,28.65579818,144.42,144.38,8.31024918]
[1728347396425,6.9252,144.4,144.37,17.3165]
[1728347396826,6.9247,144.41,144.37,24.2428]
[1728347397131,6.9247,144.41,144.38,1.38430288]
[1728347397509,15.5609,144.43,144.38,51.38430288]
[1728347397732,15.5609,144.43,144.39,6.9253]
[1728347397938,24.21613333,144.43,144.39,6.9253]
[1728347399538,1.73113347,144.48,144.42,50.0]
[1728347399728,6.9214,144.48,144.44,56.9232]
[1728347399930,8.65137328,144.49,144.45,8.30480669]
[1728347400332,6.9205,144.5,144.46,6.9219]
[1728347400540,40.3015283,144.51,144.47,8.30331382]
[1728347400732,6.9204,144.5,144.46,56.9222]
[1728347400926,40.3015283,144.51,144.47,1.38164805]
[1728347401333,40.3015283,144.51,144.47,1.38161732]
[1728347401523,26.7840283,144.51,144.47,25.60741732]
[1728347401727,26.7840283,144.51,144.48,56.9212]
[1728347401922,10.7743283,144.51,144.49,1.38127259]
[1728347402231,8.64894592,144.53,144.49,8.30207259]
[1728347402433,6.919,144.53,144.49,8.30207259]
[1728347402823,6.9194,144.52,144.48,56.921]
[1728347403742,1.7299174,144.54,144.47,17.3041]
[1728347403916,6.9212,144.49,144.44,74.2305]
[1728347404116,6.9212,144.49,144.46,50.0]
[1728347404330,6.9204,144.51,144.48,50.0]
[1728347404628,6.9195,144.52,144.48,50.0]